Cogmind - Beta 16.1 @@@ ROGUE MODE // 2026.04.01 @ 22:07:33 Player: erfael Result: Destroyed by D-53 Grenadier with Mini Grenade Launcher Performance ------------- Evolutions (1) 500 Regions Visited (4) 800 Robots Destroyed (44) 220 Value Destroyed (1016) 1016 Prototype IDs (6) 120 Alien Tech Used (0) 0 Bonus (0) 0 TOTAL SCORE: 2656 Bonus ------- None Cogmind --------- Core Integrity 0/400 Matter 300/300 Energy 100/100 System Corruption 1% Temperature Cool (0) Movement Core (200) Ox3 Location -9/Mines Parts ------- > --- POWER (1) -------- (None) > --- PROPULSION (3) --- (None) > --- UTILITY (3) ------ Medium Storage Unit > --- WEAPON (2) ------- (None) > --- INVENTORY (10) --- Aluminum Leg Aluminum Leg Improved Terrain Scanner Terrain Scan Processor Light Armor Plating Medium Armor Plating Improved Assault Rifle Improved Assault Rifle Light Cannon Light Cannon Peak State ------------ > --- POWER ------------ Cooled Ion Engine > --- PROPULSION ------- Aluminum Leg Aluminum Leg Aluminum Leg > --- UTILITY ---------- Medium Storage Unit Seismic Detector Targeting Computer > --- WEAPON ----------- Particle Cannon Improved Assault Rifle > --- INVENTORY -------- Aluminum Leg Aluminum Leg Improved Terrain Scanner Terrain Scan Processor Light Armor Plating Medium Armor Plating Improved Assault Rifle Improved Assault Rifle Light Cannon Light Cannon [Rating: 15] Favorites ----------- Power Ion Engine Engine Ion Engine Power Core Light Nuclear Core Propulsion Aluminum Leg Leg Aluminum Leg Utility Seismic Detector Device Seismic Detector Storage Small Storage Unit Processor Targeting Computer Weapon Light Assault Rifle Energy Gun Small Laser Energy Cannon Particle Cannon Ballistic Gun Light Assault Rifle Ballistic Cannon Light Cannon Build | -11 -10 -10 -9 -9 ------- Run | Yrd Mat Min Mat Min Slots Evolved 2 | . . . 2 . Power . | . . . . . Propulsion 1 | . . . 1 . Utility 1 | . . . 1 . Weapon . | . . . . . Parts Attached 30 | 8 13 2 7 . Power 6 | 1 3 1 1 . Engine 5 | 1 2 1 1 . Core 1 | . 1 . . . Reactor . | . . . . . Propulsion 8 | 2 4 1 1 . Treads . | . . . . . Leg 8 | 2 4 1 1 . Wheel . | . . . . . Hover . | . . . . . Flight . | . . . . . Utility 7 | 2 2 . 3 . Device 3 | 1 1 . 1 . Storage 2 | 1 . . 1 . Processor 2 | . 1 . 1 . Hackware . | . . . . . Protection . | . . . . . Artifact . | . . . . . Weapon 9 | 3 4 . 2 . Energy Gun 2 | 2 . . . . Energy Cannon 1 | . . . 1 . Ballistic Gun 5 | 1 3 . 1 . Ballistic Cannon 1 | . 1 . . . Launcher . | . . . . . Special Weapon . | . . . . . Impact Weapon . | . . . . . Slashing Weapon . | . . . . . Piercing Weapon . | . . . . . Special Melee Weapon . | . . . . . Unidentified Prototypes 2 | . 1 . 1 . Parts Lost 14 | . 6 . . 8 Power 3 | . 2 . . 1 Propulsion 5 | . 2 . . 3 Utility 3 | . 1 . . 2 Weapon 3 | . 1 . . 2 Highest Loss Streak 8 | . 2 . . 8 To Critical Strikes . | . . . . . Average Backups 7 | 2 7 8 9 10 Power . | . . . . . Propulsion 1 | . 1 1 1 2 Utility 3 | . 3 4 4 4 Weapon 2 | . 2 3 3 4 Tool/Special . | . . . . . Unused Backups 15 | . 5 2 1 7 Power 1 | . 1 . . . Propulsion 5 | . 1 1 1 2 Utility 7 | . 2 1 . 4 Weapon 2 | . 1 . . 1 Tool/Special . | . . . . . Average Slot Usage (%) 95 | . 94 100 95 86 Engine 10 | . 7 14 11 10 Core 1 | . 3 . . . Leg 28 | . 27 28 30 25 Device 12 | . 12 14 11 11 Storage 13 | . 14 14 11 11 Processor 2 | . . . 8 9 Energy Cannon 1 | . . . 6 9 Ballistic Gun 16 | . 21 14 11 11 Ballistic Cannon 7 | . 5 14 4 . Peak Build Rating 15 | 7 10 10 15 15 Average Rating 9 | 5 8 10 12 13 On Entrance 8 | . 7 10 10 15 Avg Prop Armor Cover (%) . | . . . . . Naked Turns . | . . . . . Heaviest Build 26 | 13 15 17 26 26 Greatest Support 30 | 20 20 20 30 30 Greatest Overweight (x) 7 | 2 4 . . 7 Average Overweight (x) . | . . . . . Largest Inventory Capacity 10 | 8 8 8 10 10 Average Capacity 8 | 7 8 8 9 10 Most Carried 10 | 4 8 8 10 10 Average Carried 7 | 3 7 7 9 10 Final Capacity 10 | 8 8 8 10 10 Final Carried 10 | 4 8 8 10 10 Class Distribution -------------------- 75% | Mutant 24% | Scavenger-Mutant Dominant Class ---------------- Mutant | -10/Materials Mutant | -10/Mines Scavenger-Mutant | -9/Materials Mutant | -9/Mines Resources | -11 -10 -10 -9 -9 ----------- Run | Yrd Mat Min Mat Min Matter Collected 1009 | 302 289 231 162 25 Remotely . | . . . . . Salvage Created 1345 | 159 455 156 544 31 Parts 103 | 11 26 14 46 6 Haulers Intercepted 2 | . . . 2 . Recyclers Shooed 3 | 1 1 . 1 . Parts Field Recycled . | . . . . . Retrieved Matter . | . . . . . Parts Self-Destructed . | . . . . . Prevented . | . . . . . Parts Restored . | . . . . . Kills | -11 -10 -10 -9 -9 ------- Run | Yrd Mat Min Mat Min Combat Hostiles Destroyed 34 | . 13 7 12 2 Guns 20 | . 10 3 5 2 Cannons 14 | . 3 4 7 . Classes Destroyed 10 | 2 4 1 3 . Tunneler 5 | 5 . . . . Hauler 2 | . . . 2 . Recycler 1 | 1 . . . . Operator 3 | . 1 . 2 . Swarmer 12 | . 3 3 4 2 Grunt 17 | . 9 3 5 . Brawler 1 | . . . 1 . Sentry 2 | . . . 2 . Subdweller 1 | . 1 . . . Assembled 1 | . . 1 . . Best Kill Streak 6 | 3 3 3 6 2 Combat Bots Only 6 | . 3 3 6 2 Max Kills in Single Turn 1 | 1 1 1 1 1 Gunslinging . | . . . . . Exploded . | . . . . . Melee . | . . . . . Uniques/NPCs Destroyed . | . . . . . Combat | -11 -10 -10 -9 -9 -------- Run | Yrd Mat Min Mat Min Hostile Shots Fired 198 | . 89 23 37 49 Missed 57 | . 24 11 12 10 Hits 141 | . 65 12 25 39 Melee 2 | . . . 1 1 Projectile 139 | . 65 12 24 38 AOE 20 | . . . . 20 Critical Strikes 4 | . 3 . 1 . Damage Taken 2303 | . 865 137 277 1024 Core 559 | . 84 46 51 378 Absorbed by Shields . | . . . . . Core Remaining (%) 74 | 100 . 48 . . Volleys Fired 146 | 22 64 27 28 5 Largest 2 | 2 2 2 2 2 Hottest 91 | 60 50 53 91 91 Shots Fired 293 | 44 129 54 56 10 Gun 224 | 44 120 27 28 5 Cannon 69 | . 9 27 28 5 Launcher . | . . . . . Special . | . . . . . Kinetic 241 | 22 129 54 31 5 Thermal 49 | 19 . . 25 5 Explosive . | . . . . . Electromagnetic 3 | 3 . . . . Robot Hit Streak 22 | 8 22 8 16 1 Robot Miss Streak 5 | 3 3 2 2 5 Penetration Max . | . . . . . Secondary Targets 1 | . 1 . . . Max Gunslinging Chain 1 | . 1 . . . Shots Hit Robots 181 | 26 97 17 39 2 Core Hits 78 | 10 35 10 21 2 Critical Kills . | . . . . . Critical Parts Destroyed 3 | . 3 . . . Critical Strikes 3 | . 3 . . . Destroy 3 | . 3 . . . Melee Attacks . | . . . . . Impact . | . . . . . Slashing . | . . . . . Piercing . | . . . . . Sneak Attacks . | . . . . . Combat Hostiles . | . . . . . Follow-up Attacks . | . . . . . Damage Inflicted 2233 | 302 838 263 786 44 Guns 1442 | 262 732 128 276 44 Cannons 751 | . 106 135 510 . Explosions 40 | 40 . . . . Melee . | . . . . . Ramming . | . . . . . Kinetic 1560 | 82 838 263 333 44 Thermal 646 | 193 . . 453 . Explosive . | . . . . . Electromagnetic 27 | 27 . . . . Impact . | . . . . . Slashing . | . . . . . Piercing . | . . . . . Highest Corruption 2 | . 2 2 . 1 Average Corruption 1 | . 2 2 . 1 Corruption Purged . | . . . . . Corruption Blocked . | . . . . . Effects 25 | . 12 13 . . Message Errors 7 | . 2 5 . . Matter Fused 5 | . 3 2 . . Heat Flow Errors 4 | . 1 3 . . Energy Discharges 3 | . 2 1 . . Data Loss (minor) 4 | . 2 2 . . Misfires 1 | . 1 . . . Alerts 1 | . 1 . . . Overload Shots . | . . . . . Overflow Damage 10 | . . . 10 . Projectiles 10 | . . . 10 . Explosions . | . . . . . Melee . | . . . . . Knockbacks 3 | . 1 1 1 . Impact . | . . . . . Kinetic 3 | . 1 1 1 . Secondary . | . . . . . Self-Inflicted Damage . | . . . . . Shots . | . . . . . Rammed . | . . . . . Targets Rammed . | . . . . . Kicked . | . . . . . Crushed . | . . . . . Highest Temperature 231 | 60 104 140 231 45 Average Temperature 46 | 28 13 57 91 20 Received Heat Transfer 522 | . 393 36 93 . Siege Activations . | . . . . . Martial Activations . | . . . . . Shielding Activations . | . . . . . Robots Disrupted . | . . . . . Combat Hostiles . | . . . . . Robots Corrupted . | . . . . . Combat Hostiles . | . . . . . Parts Fried . | . . . . . Impact Corruptions . | . . . . . Robots Melted . | . . . . . Combat Hostiles . | . . . . . Parts Melted 1 | . 1 . . . Heat Transferred 1164 | 350 . . 814 . Parts Sabotaged . | . . . . . Parts Stolen . | . . . . . Parts Stripped . | . . . . . Power Chain Reactions 1 | 1 . . . . Alert | -11 -10 -10 -9 -9 ------- Run | Yrd Mat Min Mat Min Maximum Alert Level . | . . . . . Low Security (%) 100 | 100 100 100 100 100 Level 1 . | . . . . . Level 2 . | . . . . . Level 3 . | . . . . . Level 4 . | . . . . . Level 5 . | . . . . . High Security . | . . . . . Max Security . | . . . . . Peak Influence 191 | 15 93 77 191 97 Initial 67 | . . . . 67 Average 23 | 1 22 12 38 69 Influence Increases 1005 | 30 406 155 374 40 Destroy 0b10 Robot/C 640 | . 240 120 240 40 Destroy 0b10 Robot/NC 55 | 30 5 . 20 . Destroy Leader 144 | . 70 20 54 . Successful Hack 45 | . 31 . 14 . Disable Machine 30 | . . . 30 . Destroy Structure 1 | . . . 1 . Lose Combat Pursuer 90 | . 60 15 15 . Influence Decreases 1005 | 30 406 155 200 214 Entered New Map 107 | . . . . 107 Time Decay 771 | 30 346 155 200 40 Lost Part 127 | . 60 . . 67 Squads Dispatched 7 | . 6 . 1 . Investigation 1 | . 1 . . . Extermination . | . . . . . Reinforcement 6 | . 5 . 1 . Assault . | . . . . . Garrison . | . . . . . Intercept . | . . . . . Searches Triggered . | . . . . . Construction Impeded . | . . . . . Haulers Reinforced . | . . . . . Active Scanning Responses . | . . . . . Cargo Convoy Interrupts . | . . . . . Stealth | -11 -10 -10 -9 -9 --------- Run | Yrd Mat Min Mat Min Distress Signals 6 | . 3 . 3 . Communications Jammed . | . . . . . Distress Signals . | . . . . . Times Spotted 84 | . 40 8 24 12 Peak Tracking Total 20 | . 4 3 7 20 Tactical Retreats 11 | . 7 2 1 1 Traps | -11 -10 -10 -9 -9 ------- Run | Yrd Mat Min Mat Min Traps Triggered 2 | . 2 . . . Indirectly . | . . . . . Trap Hack Attempts . | . . . . . Triggered . | . . . . . Disarmed . | . . . . . Reprogrammed . | . . . . . Reused . | . . . . . Traps Extracted . | . . . . . Installed . | . . . . . Triggered . | . . . . . Machines | -11 -10 -10 -9 -9 ---------- Run | Yrd Mat Min Mat Min Machines Disabled 3 | . . . 3 . Max in Single Turn 1 | . . . 1 . Machines Repaired . | . . . . . Machines Dismantled . | . . . . . Machines Sabotaged . | . . . . . Overloaded Fab Kills . | . . . . . Hacking | -11 -10 -10 -9 -9 --------- Run | Yrd Mat Min Mat Min Machines Accessed 7 | . 3 . 4 . Terminals 7 | . 3 . 4 . Fabricators . | . . . . . Repair Stations . | . . . . . Recycling Units . | . . . . . Scanalyzers . | . . . . . Garrison Access . | . . . . . Total Hacks 15 | . 6 . 9 . Successful 10 | . 3 . 7 . Failed 5 | . 3 . 2 . Catastrophic 1 | . 1 . . . Database Lockouts . | . . . . . Manual 9 | . 6 . 3 . Terminals 15 | . 6 . 9 . Fabricators . | . . . . . Repair Stations . | . . . . . Recycling Units . | . . . . . Scanalyzers . | . . . . . Garrison Access . | . . . . . Terminal Hacks 5 | . . . 5 . Prototype ID Bank 2 | . . . 2 . Branch Access Points 1 | . . . 1 . Locate Traps 1 | . . . 1 . Investigation Status 1 | . . . 1 . Fabricator Hacks . | . . . . . Repair Station Hacks . | . . . . . Recycling Unit Hacks . | . . . . . Scanalyzer . | . . . . . Garrison Access Hacks . | . . . . . Unauthorized Hacks 5 | . 3 . 2 . Terminals 5 | . 3 . 2 . Botnet 5 | . 3 . 2 . Fabricators . | . . . . . Repair Stations . | . . . . . Recycling Units . | . . . . . Scanalyzers . | . . . . . Garrison Access . | . . . . . Data Cores Recovered 1 | . . . 1 . Used . | . . . . . Hacking Detections 5 | . 3 . 2 . Full Trace Events . | . . . . . Feedback Events . | . . . . . Feedback Blocked . | . . . . . Robot Schematics Acquired . | . . . . . Robots Built . | . . . . . Authchips . | . . . . . Time . | . . . . . Total Robot Build Rating . | . . . . . Part Schematics Acquired . | . . . . . Parts Built . | . . . . . Authchips . | . . . . . Time . | . . . . . Total Part Build Rating . | . . . . . Part Studies Acquired . | . . . . . Parts Repaired . | . . . . . Time . | . . . . . Parts Recycled . | . . . . . Recycled Matter . | . . . . . Retrieved Matter . | . . . . . Retrieved Components . | . . . . . Parts Scanalyzed . | . . . . . Part Schematics Acquired . | . . . . . Parts Damaged . | . . . . . Bothacking | -11 -10 -10 -9 -9 ------------ Run | Yrd Mat Min Mat Min Used RIF Installer . | . . . . . Robots Hacked . | . . . . . Non-combat . | . . . . . Combat . | . . . . . Robot Hacks Applied . | . . . . . Relay Couplers Released . | . . . . . Fabnet Peak Effective % . | . . . . . Robots Rewired . | . . . . . Allies Hacked . | . . . . . Hacks Repelled . | . . . . . Allies | -11 -10 -10 -9 -9 -------- Run | Yrd Mat Min Mat Min Total Allies . | . . . . . Largest Group . | . . . . . Highest-Rated Group . | . . . . . Highest-Rated Ally . | . . . . . Total Orders . | . . . . . Ally Attacks . | . . . . . Total Damage . | . . . . . Kills . | . . . . . Allies Corrupted . | . . . . . Allies Melted . | . . . . . Intel | -11 -10 -10 -9 -9 ------- Run | Yrd Mat Min Mat Min Active Infowar (turns) 2659 | 60 1051 770 683 95 Seismic 2657 | 60 1049 770 683 95 T.N.C. 2 | . 2 . . . Robot Analysis Total . | . . . . . Derelict Logs Recovered 1 | . . 1 . . Drone Launches . | . . . . . Drone Recoveries . | . . . . . Exploration | -11 -10 -10 -9 -9 ------------- Run | Yrd Mat Min Mat Min Turns Passed 2941 | 206 1185 770 683 97 Spaces Moved 1767 | 109 695 548 361 54 Core 17 | 9 3 . . 5 Treads . | . . . . . Legs 1750 | 100 692 548 361 49 Wheels . | . . . . . Hover . | . . . . . Flight . | . . . . . Fastest Speed 50 | 50 120 120 120 120 Average Speed 121 | 117 120 120 120 149 Slowest Speed 400 | 150 250 120 120 400 Overloaded Moves . | . . . . . Propulsion Burnouts . | . . . . . Robots Hopped . | . . . . . Potential Cave-ins . | . . . . . Cave-ins Triggered . | . . . . . Exploration Rate (%) 48 | 6 91 98 31 15 Regions Visited 4 Branch Regions 2 Pre-discovered Areas . | . . . . . Known Exits Taken 1 | . . . 1 . Unknown Exits Taken 3 | 1 1 1 . . Scrap Searched 1 | . . 1 . . Spaces Dug . | . . . . . Terrain Destroyed 7 | 7 . . . . Melee . | . . . . . Projectile . | . . . . . AOE 7 | 7 . . . . Terrain Rammed . | . . . . . Walls Destroyed . | . . . . . Machines Disabled . | . . . . . Actions | -11 -10 -10 -9 -9 --------- Run | Yrd Mat Min Mat Min Total 2311 | 143 939 609 559 61 Wait 319 | 1 138 27 151 2 Move 1763 | 108 694 547 360 54 Hop . | . . . . . Pick Up 25 | 4 14 2 5 . Fast Attach 16 | 7 6 . 3 . Attach 6 | . 4 . 2 . Detach 4 | . 2 . 2 . Swap 10 | 1 5 2 2 . Drop 22 | . 12 4 6 . Fire 146 | 22 64 27 28 5 Melee . | . . . . . Ram . | . . . . . Kick . | . . . . . Crush . | . . . . . Escape Stasis . | . . . . . Rewire . | . . . . . Trap . | . . . . . Miscellaneous . | . . . . . Route ------- -11/Scrapyard -10/Materials (discovered 4 exits: *Mat x3 / [*Min]) -10/Mines (discovered 2 exits: *Mat x2) -9/Materials (discovered 3 exits: *Min x2 / Sto) -9/Mines History --------- Turn | Location | Event 10 | -11/Scrapyard | Discovered new exit (range 16) 207 | -11/Scrapyard | Entered Materials 301 | -10/Materials | Build established: Mutant 491 | -10/Materials | Discovered new exit (range 3) 807 | -10/Materials | Derelicts attacked the area 879 | -10/Materials | Discovered new exit (range 16) 1076 | -10/Materials | Discovered new exit (range 3) 1322 | -10/Materials | Discovered new exit (range 12) 1392 | -10/Materials | Entered Mines 1409 | -10/Mines | Discovered new exit (range 9) 1487 | -10/Mines | Learned Materials garrison access intel 1597 | -10/Mines | Excavation squad dispatched 1597 | -10/Mines | A large section of the Mines collapsed 1603 | -10/Mines | Core integrity fell below 50% 1881 | -10/Mines | Discovered new exit (range 12) 2162 | -10/Mines | Entered Materials 2162 | -9/Materials | Evolved 2 slots: Propulsion x1, Utility x1 2275 | -9/Materials | Identified exit to Mines 2275 | -9/Materials | Identified exit to Storage 2598 | -9/Materials | Build established: Scavenger-Mutant 2845 | -9/Materials | Entered Mines 2896 | -9/Mines | Assembled infested the area 2933 | -9/Mines | Core integrity fell below 50% 2937 | -9/Mines | Core integrity fell below 20% 2942 | -9/Mines | Destroyed by D-53 Grenadier with Mini Grenade Launcher Last Messages --------------- 02920_ K-01 Serf collects debris. 02925_ The unstable cave ceiling collapses. 02925_ Targeting Computer destroyed. 02925_ Particle Cannon destroyed. 02926_ K-01 Serf collects debris. 02926_ R-06 Scavenger destroyed. 02926_ R-06 Scavenger collects Lgt. Ion Engine. 02928_ Aluminum Leg destroyed. 02929_ K-01 Serf collects debris. 02931_ R-06 Scavenger collects Lgt. Assault Rifle. 02932_ R-06 Scavenger destroyed. 02934_ Cld. Ion Engine destroyed. 02934_ K-01 Serf collects debris. 02937_ The unstable cave ceiling collapses. 02938_ K-01 Serf collects debris. 02939_ The unstable cave ceiling collapses. 02940_ Seismic Detector destroyed. 02940_ Imp. Assault Rifle destroyed. 02940_ K-01 Serf destroyed. 02942_ D-53 Grenadier destroyed. Map ----- +----------------------------------------------------+ | | | | | | | | | | | | | | | | | | | | | | | | | ???????????????????????????????????????? | | ???????????????????????????????????????? | | ???????????????????????????????????????? | | ???????????????????????????????#######?? | | ???????????????????????????????# #?? | | ???????????????????????????????# #?? | | ?????????????????????????####??# #?? | | ???????????? ????####???## ##?# #?? | | ???????????? ### #?## ### = #?? | | ??????????? ## ! ## = #?? | | ?????????????# ### ##?? | | ??????????????# ## %#??? | | ??????????????# ##?? | | ?????????? u @ % #?? | | ?????????????????# #?? | | ?????????????????##### #?? | | ?????????????????????## d ##?? | | ??????????????????????## #?? | | ???????????????????????## #? | | ????????????????????????# # #? | | ????????????????????????# #? | | ????????????????????????## #? | | ????????????????????????# #? | | ????????????????????????## #######? | | ?????????????????????????## #% ##??? | | ??????????????????????????## %a #??? | | ???????????????????????????# # #??? | | ???????????????????????????#### ##??? | | ?????????????????????????####??# #???? | | ?????????????????????????? #?## #???? | | ??????????????????????????# ### ##???? | | ??????????????????????????# ## ##????? | | ??????????????????????????# ##?????? | | ??????????????????????????# #####??????? | | ??????????????????????????# #??????????? | | ?????????????????????????? #??????????? | | ????????????????????????? ##??????????? | | ????????????????????????# ????????????? | +----------------------------------------------------+ Best States ------------- Heat Dissipation 28 Energy Generation 14 Energy Capacity 280 Matter Stores 300 Matter Capacity 300 Sight Range 16 Terrain Scan Density 10 Evasion (%) 55 Targeting Accuracy 5 Item Schematics ----------------- None Robot Schematics ------------------ None Fabricated ------------ Nothing Repaired ---------- Nothing Studied --------- None Alien Tech Used ----------------- None Achievements -------------- None Challenges ------------ None Game ------ Seed TerrabombGatlingInterpreter Manual? 0 Play Time 00:36:44 Cumulative 59.9 hours Start 2026.03.31 @ 22:30:18 End 2026.04.01 @ 22:07:33 Sessions 3 Manual Loads 0 Difficulty Rogue Special Mode None Game No. 57 Rogue 57 Adventurer 0 Explorer 0 Win Type - Total 0 Types 0/0/0/0/0/0/0/0/0/0 Lore% 32 Gallery% 27 Achievement% 18 Wizard Run 0 Options --------- Layout 0 ASCII 0 Keyboard 1 Movement Numpad Keybinds 0 Fullscreen 2 Font 20/Terminus Map View 97x62 Zoom Use 0% Tactical HUD 1 Map Filters NONE Filters NONE Steam 1 RUN: dec1426b-7198-4683-94ba-63b645e2c785